[Event "World Junior U20 Girls 2018"]
[Site "Gebze"]
[Date "2018.09.10"]
[Round "6"]
[White "Auvray, Honorine"]
[Black "Salah, Nadezhda"]
[Result "0-1"]
[ECO "A47"]
[WhiteElo "2050"]
[BlackElo "1918"]
[Annotator "NA"]
[PlyCount "58"]
[EventDate "2018.09.05"]
[EventType "swiss"]
[EventCountry "TUR"]
[SourceTitle "playchess.com"]
[Source "ChessBase"]
[SourceQuality "1"]
[TimeControl "40/5400+30:1800+30"]

1. d4 {[%emt 0:00:30]} Nf6 {[%emt 0:00:30]} 2. Bf4 {[%emt 0:00:00]} e6 {[%emt 0:00:30]} 3. e3 {[%emt 0:00:00]} c5 {[%emt 0:03:30]} 4. c3 {[%emt 0:01:30]} Be7 {[%emt 0:01:30]} 5. Nd2 {[%emt 0:00:30]} b6 {[%emt 0:01:30]} 6. Ngf3 {[%emt 0:00:30]} d6 {[%emt 0:00:30]} 7. Bd3 {[%emt 0:05:30]} Nh5 {[%emt 0:07:30] [#]} (7... O-O $11) 8. Bg3 {[%emt 0:01:30]} (8. Bxd6 $1 $16 Qxd6 9. Be4) 8... Nxg3 {[%emt 0:01:30]} 9. hxg3 {[%emt 0:00:30]} h6 {[%emt 0:00:00]} 10. Qe2 {[%emt 0:09:30]} Bb7 {[%emt 0:02:00]} 11. g4 {[%emt 0:05:30]} Nd7 {[%emt 0:06:30]} 12. a4 {[%emt 0:13:30]} a6 {[%emt 0:04:30]} 13. Ne4 {[%emt 0:21:30]} c4 {[%emt 0:11:30]} 14. Bc2 $11 {[%emt 0:00:30]} b5 {[%emt 0:03:30]} 15. g5 {[%emt 0:09:30]} d5 {[%emt 0:03:30]} 16. Ned2 {[%emt 0:01:30]} Bxg5 {[%emt 0:02:30]} 17. Nxg5 {[%emt 0:00:30]} Qxg5 {[%emt 0:00:00]} 18. f4 {[%emt 0:06:44]} Qe7 {[%emt 0:03:00]} 19. e4 {[%emt 0:00:48]} b4 {[%emt 0:09:30]} 20. e5 {[%emt 0:04:46]} b3 {[%emt 0:03:30]} 21. Bb1 {[%emt 0:00:05]} a5 {[%emt 0:13:55]} 22. f5 {[%emt 0:05:03]} O-O-O {[%emt 0:07:51]} 23. Nxc4 {[%emt 0:08:25]} dxc4 {[%emt 0:00:30]} 24. Qxc4+ {[%emt 0:00:30]} Kb8 {[%emt 0:00:00]} 25. Qxb3 {[%emt 0:02:21]} Qg5 {[%emt 0:00:07]} 26. Rg1 {[%emt 0:00:54]} Qe3+ {[%emt 0:00:46]} 27. Kf1 {[%emt 0:00:31]} Ka7 {[%emt 0:01:09]} 28. Bc2 {[%emt 0:00:47]} Rb8 {[%emt 0:01:07]} 29. Re1 {[%emt 0:00:39]} Ba6+ {[%emt 0:00:25]} 0-1

[Event "World Junior U20 Girls 2018"]
[Site "Gebze"]
[Date "2018.09.10"]
[Round "6"]
[White "Cramling Bellon, Anna"]
[Black "Duran, Esma Doga"]
[Result "1-0"]
[ECO "D60"]
[WhiteElo "2009"]
[BlackElo "1825"]
[Annotator "NA"]
[PlyCount "65"]
[EventDate "2018.09.05"]
[EventType "swiss"]
[EventCountry "TUR"]
[SourceTitle "playchess.com"]
[Source "ChessBase"]
[SourceQuality "1"]
[TimeControl "40/5400+30:1800+30"]

1. d4 {[%emt 0:00:30]} d5 {[%emt 0:01:30]} 2. c4 {[%emt 0:00:30]} c6 {[%emt 0:00:00]} 3. Nf3 {[%emt 0:00:00]} Nf6 {[%emt 0:00:00]} 4. Nc3 {[%emt 0:00:00]} e6 {[%emt 0:00:00]} 5. Bg5 {[%emt 0:00:00]} Be7 {[%emt 0:00:00]} 6. e3 {[%emt 0:00:00]} Nbd7 {[%emt 0:00:30]} 7. Bd3 {[%emt 0:05:30]} dxc4 {[%emt 0:00:30]} 8. Bxc4 {[%emt 0:00:00]} b5 {[%emt 0:00:30]} 9. Bd3 {[%emt 0:00:00]} Bb7 {[%emt 0:00:00]} 10. O-O {[%emt 0:00:30]} O-O {[%emt 0:00:00]} 11. a4 {[%emt 0:01:30] D60: Queen's Gambit Declined: Classical: Unusual White 7th moves} (11. Rc1 a6 12. Ne4 Nxe4 13. Bxe7 Nxf2 14. Bxh7+ Kh8 15. Rxf2 Qxe7 16. Be4 Rac8 17. Ne5 Nxe5 18. Qh5+ {1-0 (18) Li,C (2732)-Bacrot,A (2192) chess.com INT 2018}) 11... b4 {[%emt 0:00:30]} 12. Ne4 $146 {[%emt 0:04:30]} ({Predecessor:} 12. Bxf6 Bxf6 13. Ne4 Be7 14. Rc1 Rc8 15. Nc5 Nxc5 16. dxc5 Qa5 17. Nd4 Rfd8 18. Nb3 Qc7 {0-1 (49) Demel,P (2178)-Nuber,B (2349) Bayern 2014}) 12... Nxe4 {[%emt 0:04:30]} 13. Bxe7 {[%emt 0:00:30]} Qxe7 {[%emt 0:00:30]} 14. Bxe4 {[%emt 0:00:00]} f5 {[%emt 0:03:30]} 15. Bd3 {[%emt 0:04:00]} c5 {[%emt 0:03:30]} 16. Bb5 {[%emt 0:15:30]} Rfd8 {[%emt 0:15:30]} 17. Qe2 {[%emt 0:06:30]} Rac8 {[%emt 0:09:30]} 18. Rac1 {[%emt 0:11:30]} Nf6 {[%emt 0:12:30]} 19. h3 {[%emt 0:04:30]} Ne4 {[%emt 0:12:30]} 20. Ba6 $11 {[%emt 0:09:30]} Rd6 {[%emt 0:09:30]} 21. Bxb7 {[%emt 0:04:30]} Qxb7 {[%emt 0:00:30]} 22. Rfd1 {[%emt 0:03:30]} Rd5 {[%emt 0:14:47]} 23. Ne5 {[%emt 0:17:59]} cxd4 {[%emt 0:01:33]} 24. exd4 {[%emt 0:00:16]} Rdd8 {[%emt 0:07:26]} 25. Qe3 {[%emt 0:03:53]} Qd5 {[%emt 0:01:46]} 26. Rxc8 {[%emt 0:04:20]} Rxc8 {[%emt 0:00:00]} 27. Rc1 {[%emt 0:00:00]} Rxc1+ {[%emt 0:02:00]} 28. Qxc1 {[%emt 0:00:28]} h6 {[%emt 0:00:00]} 29. Qc8+ {[%emt 0:03:15]} Kh7 {[%emt 0:00:00]} 30. Nd7 {[%emt 0:00:52]} Nd6 {[%emt 0:01:26]} 31. Qb8 {[%emt 0:00:40]} h5 {[%emt 0:00:30]} 32. Qxa7 {[%emt 0:00:32]} Qe4 {[%emt 0:00:44]} 33. Nf6+ {[%emt 0:00:09]} 1-0

[Event "World Junior U20 Girls 2018"]
[Site "Gebze"]
[Date "2018.09.10"]
[Round "6"]
[White "Ayan, Bengu Sena"]
[Black "Sade, Defne"]
[Result "1-0"]
[ECO "E06"]
[WhiteElo "1976"]
[BlackElo "1826"]
[Annotator "NA"]
[PlyCount "65"]
[EventDate "2018.09.05"]
[EventType "swiss"]
[EventCountry "TUR"]
[SourceTitle "playchess.com"]
[Source "ChessBase"]
[SourceQuality "1"]
[TimeControl "40/5400+30:1800+30"]

1. d4 {[%emt 0:00:30]} d5 {[%emt 0:00:30]} 2. c4 {[%emt 0:00:00]} e6 {[%emt 0:00:00]} 3. Nf3 {[%emt 0:01:00]} Nf6 {[%emt 0:00:00]} 4. g3 {[%emt 0:00:30]} Be7 {[%emt 0:00:30]} 5. Bg2 {[%emt 0:00:30]} O-O {[%emt 0:00:00]} 6. Qc2 {[%emt 0:01:30]} c5 {[%emt 0:00:00]} 7. cxd5 {[%emt 0:02:30]} Nxd5 {[%emt 0:00:30]} 8. O-O {[%emt 0:04:30]} Qb6 {[%emt 0:08:30]} 9. Rd1 {[%emt 0:13:30]} ({White should try} 9. dxc5 $14 Qxc5 10. Qxc5 Bxc5 11. Nc3) 9... Nc6 $11 {[%emt 0:03:30]} (9... cxd4 $15 10. Nxd4 Nb4) 10. e3 {[%emt 0:08:30]} Rd8 {[%emt 0:07:30]} 11. Qe2 {[%emt 0:09:30]} Bd7 {[%emt 0:04:30]} 12. e4 {[%emt 0:08:30]} Nf6 {[%emt 0:03:30]} 13. d5 {[%emt 0:01:30]} Nb4 {[%emt 0:04:30]} 14. Nc3 {[%emt 0:02:30]} exd5 {[%emt 0:08:30]} 15. exd5 {[%emt 0:01:30]} Bd6 {[%emt 0:02:30]} 16. a3 {[%emt 0:02:30]} Re8 {[%emt 0:02:30]} 17. Be3 {[%emt 0:00:30]} Na6 {[%emt 0:01:30]} 18. Qc2 {[%emt 0:01:30]} Ng4 {[%emt 0:03:30]} 19. Re1 {[%emt 0:05:30]} Nxe3 {[%emt 0:10:30]} 20. fxe3 {[%emt 0:00:30]} c4 {[%emt 0:00:30]} 21. Ne4 {[%emt 0:09:30]} Bc5 {[%emt 0:09:30]} 22. Nxc5 {[%emt 0:03:30]} Nxc5 {[%emt 0:11:40]} 23. Qxc4 {[%emt 0:01:30]} Nb3 {[%emt 0:00:07]} 24. Rad1 {[%emt 0:00:36]} Rxe3 {[%emt 0:00:15]} 25. Kh1 {[%emt 0:02:45]} Rc8 {[%emt 0:09:06]} 26. Qf4 {[%emt 0:02:09]} Rce8 {[%emt 0:00:43]} 27. Rxe3 {[%emt 0:03:02]} Qxe3 {[%emt 0:00:20]} 28. Qc7 {[%emt 0:00:50]} Bh3 {[%emt 0:03:27]} 29. Qc2 {[%emt 0:04:29]} Nd4 {[%emt 0:01:22]} 30. Nxd4 {[%emt 0:03:36]} Qe1+ {[%emt 0:00:30]} 31. Bf1 {[%emt 0:00:06]} Qe3 {[%emt 0:04:56]} 32. Bxh3 {[%emt 0:00:59]} Qg5 {[%emt 0:00:19]} 33. Bg2 {[%emt 0:00:00]} 1-0

[Event "World Junior U20 Girls 2018"]
[Site "Gebze"]
[Date "2018.09.10"]
[Round "6"]
[White "Aubert, Laurane"]
[Black "Malatsilava, Volha"]
[Result "1/2-1/2"]
[ECO "B48"]
[WhiteElo "1970"]
[BlackElo "2040"]
[Annotator "NA"]
[PlyCount "95"]
[EventDate "2018.09.05"]
[EventType "swiss"]
[EventCountry "TUR"]
[SourceTitle "playchess.com"]
[Source "ChessBase"]
[SourceQuality "1"]
[TimeControl "40/5400+30:1800+30"]

1. e4 {[%emt 0:00:30]} c5 {[%emt 0:00:30]} 2. Nf3 {[%emt 0:00:30]} e6 {[%emt 0:00:30]} 3. d4 {[%emt 0:00:00]} cxd4 {[%emt 0:00:30]} 4. Nxd4 {[%emt 0:00:00]} Nc6 {[%emt 0:00:30]} 5. Nc3 {[%emt 0:00:00]} Qc7 {[%emt 0:00:00]} 6. Be3 {[%emt 0:00:00]} Nf6 {[%emt 0:00:00]} 7. Bd3 {[%emt 0:00:00]} a6 {[%emt 0:00:00]} 8. O-O {[%emt 0:00:00]} Bd6 {[%emt 0:00:00]} 9. h3 {[%emt 0:00:30]} O-O {[%emt 0:00:30]} 10. Nb3 {[%emt 0:18:30] B48: Sicilian: Taimanov: 5 Nc3 Qc7 6 Be3 a6 without Be2} (10. Nde2 b5 11. f4 Be7 12. e5 Ne8 13. Ng3 g6 14. a4 bxa4 15. Nxa4 Rb8 16. c3 d6 17. exd6 Nxd6 {0-1 (37) Shabalov,A (2556)-Iturrizaga Bonelli,E (2663) Medellin 2017}) 10... Bf4 {[%emt 0:06:30]} 11. Bxf4 $146 {[%emt 0:04:30]} ({Predecessor:} 11. Qd2 Bxe3 12. Qxe3 b5 13. f4 d6 14. a4 b4 15. Ne2 Bb7 16. a5 Rfe8 17. Ng3 Rad8 {½-½ (41) Laznicka,V (2164)-Efler,D (2173) Czechia 2001}) 11... Qxf4 {[%emt 0:00:30]} 12. Ne2 {[%emt 0:03:30]} Qc7 {[%emt 0:00:30]} 13. f4 {[%emt 0:00:30]} d6 {[%emt 0:01:30]} 14. Qe1 {[%emt 0:02:30]} e5 {[%emt 0:04:30]} 15. f5 {[%emt 0:07:30]} Qb6+ {[%emt 0:19:30]} 16. Kh1 {[%emt 0:00:30]} d5 {[%emt 0:03:30]} (16... Nb4 $15) 17. exd5 {[%emt 0:11:30]} Nb4 {[%emt 0:00:30]} 18. Nc3 {[%emt 0:05:30]} Nxd3 {[%emt 0:04:30]} 19. cxd3 {[%emt 0:00:30]} Re8 {[%emt 0:04:30]} 20. Qh4 {[%emt 0:05:30]} Qd6 {[%emt 0:02:30]} 21. Ne4 {[%emt 0:07:30]} Qxd5 $2 {[%emt 0:00:30]} (21... Qd8 $16 {ist zäher.}) 22. Nxf6+ {[%emt 0:00:30]} gxf6 {[%emt 0:00:30]} 23. Qxf6 {[%emt 0:00:30]} Qd8 {[%emt 0:00:30]} 24. Qh6 {[%emt 0:01:30]} f6 {[%emt 0:00:30]} 25. Rf3 {[%emt 0:00:30]} Qe7 {[%emt 0:01:30]} 26. Rg3+ {[%emt 0:00:30]} Kh8 {[%emt 0:00:00]} 27. Rf1 {[%emt 0:04:30]} b6 {[%emt 0:02:00]} 28. Nd2 {[%emt 0:03:30]} Bb7 {[%emt 0:00:30]} 29. Ne4 {[%emt 0:03:53]} Bxe4 {[%emt 0:00:30]} 30. dxe4 {[%emt 0:00:07]} Rad8 {[%emt 0:03:30]} 31. Rc1 {[%emt 0:01:41]} Rd6 {[%emt 0:01:30]} 32. Rgc3 {[%emt 0:00:53]} Qg7 {[%emt 0:19:30]} 33. Rc8 {[%emt 0:07:17]} Red8 {[%emt 0:09:40]} 34. Rxd8+ {[%emt 0:06:09]} Rxd8 {[%emt 0:00:06]} 35. Qxg7+ {[%emt 0:00:18]} Kxg7 {[%emt 0:00:30]} 36. Rc7+ {[%emt 0:00:00]} Kh6 {[%emt 0:00:00]} 37. Rc6 {[%emt 0:00:46]} Kg5 {[%emt 0:00:01]} 38. Rxb6 {[%emt 0:02:19]} a5 {[%emt 0:01:36]} 39. Rb5 {[%emt 0:03:49]} Rd2 {[%emt 0:00:42]} 40. Kh2 {[%emt 0:00:00]} Kf4 {[%emt 0:00:00]} 41. Rxa5 {[%emt 0:10:18]} Rxb2 {[%emt 0:08:55]} 42. Ra4 $11 {[%emt 0:05:41]} (42. Ra6 $16) 42... h5 {[%emt 0:00:30]} 43. Kg1 {[%emt 0:12:15]} h4 {[%emt 0:09:30]} 44. Kf1 {[%emt 0:00:58]} Ke3 {[%emt 0:01:30]} 45. Kg1 {[%emt 0:00:54]} Kf4 {[%emt 0:03:30]} 46. Kf1 {[%emt 0:02:21]} Ke3 {[%emt 0:00:30]} 47. Kg1 {[%emt 0:00:07]} Kf4 {[%emt 0:00:30]} 48. Kf1 {[%emt 0:00:42]} 1/2-1/2

[Event "World Junior U20 Girls 2018"]
[Site "Gebze"]
[Date "2018.09.10"]
[Round "6"]
[White "Meenal Gupta"]
[Black "Kanakova, Natalie"]
[Result "1-0"]
[ECO "C96"]
[WhiteElo "1963"]
[BlackElo "2201"]
[Annotator "NA"]
[PlyCount "87"]
[EventDate "2018.09.05"]
[EventType "swiss"]
[EventCountry "TUR"]
[SourceTitle "playchess.com"]
[Source "ChessBase"]
[SourceQuality "1"]
[TimeControl "40/5400+30:1800+30"]

1. e4 {[%emt 0:00:30]} e5 {[%emt 0:00:30]} 2. Nf3 {[%emt 0:00:30]} Nc6 {[%emt 0:00:30]} 3. Bb5 {[%emt 0:00:30]} a6 {[%emt 0:00:00]} 4. Ba4 {[%emt 0:00:00]} Nf6 {[%emt 0:00:00]} 5. O-O {[%emt 0:00:00]} Be7 {[%emt 0:00:30]} 6. Re1 {[%emt 0:00:00]} b5 {[%emt 0:00:30]} 7. Bb3 {[%emt 0:00:00]} d6 {[%emt 0:00:00]} 8. c3 {[%emt 0:00:00]} O-O {[%emt 0:00:00]} 9. h3 {[%emt 0:01:00]} Na5 {[%emt 0:00:30]} 10. Bc2 {[%emt 0:00:30]} c5 {[%emt 0:00:00]} 11. d4 {[%emt 0:00:30]} Nd7 {[%emt 0:00:00]} 12. a4 {[%emt 0:11:30]} Bb7 {[%emt 0:01:30] C96: Closed Ruy Lopez: Chigorin Defence: 11 d4, replies other than 11...Qc7} (12... b4 13. Nbd2 Rb8 14. Nf1 b3 15. Bd3 exd4 16. cxd4 c4 17. Be2 c3 18. Ng3 Nf6 19. Bd3 Nc6 20. d5 {0-1 (37) Quesada Perez,Y (2627)-Caruana,F (2811) chess.com INT 2018}) 13. d5 {[%emt 0:00:30] [#]} g6 $146 {[%emt 0:08:30]} ({Predecessor:} 13... b4 14. b3 bxc3 15. Nxc3 Rb8 16. Bd2 Bc8 17. Nb1 g6 18. Bh6 Re8 19. Na3 Rb4 20. Bd2 {½-½ (48) Shankland,S (2666)-Xiong,J (2674) Saint Louis 2017}) 14. Bh6 {[%emt 0:13:30]} Re8 {[%emt 0:00:30]} 15. axb5 {[%emt 0:04:30]} axb5 {[%emt 0:00:30]} 16. b3 {[%emt 0:00:00]} Bf8 {[%emt 0:08:30]} 17. Be3 {[%emt 0:03:00]} Bg7 {[%emt 0:03:30]} (17... c4 $14) 18. Nbd2 {[%emt 0:04:30]} Rf8 {[%emt 0:05:30]} 19. Nf1 {[%emt 0:13:30]} (19. Qe2 $16) 19... Rb8 {[%emt 0:27:30]} 20. g4 {[%emt 0:03:30]} Ba8 {[%emt 0:06:30]} 21. Qe2 {[%emt 0:04:30]} h6 {[%emt 0:09:30]} 22. Ng3 {[%emt 0:00:30]} Qc7 {[%emt 0:00:30]} 23. Kh2 {[%emt 0:00:30]} Kh7 {[%emt 0:02:30]} 24. Ra2 $16 {[%emt 0:04:30]} c4 {[%emt 0:09:08]} 25. b4 {[%emt 0:00:30]} Nb3 {[%emt 0:00:15]} 26. Rb1 {[%emt 0:02:30]} Nb6 {[%emt 0:01:27]} 27. Bxb6 {[%emt 0:01:30]} Qxb6 {[%emt 0:00:22]} 28. Bxb3 {[%emt 0:00:30]} cxb3 {[%emt 0:00:33]} 29. Rxb3 {[%emt 0:00:00]} f5 {[%emt 0:02:49]} 30. gxf5 {[%emt 0:06:00]} gxf5 {[%emt 0:00:05]} 31. Nh4 {[%emt 0:00:30]} fxe4 {[%emt 0:03:29]} 32. Qxe4+ {[%emt 0:00:30]} Kg8 {[%emt 0:00:00]} 33. Ngf5 {[%emt 0:02:30]} Rf7 {[%emt 0:04:52]} 34. c4 {[%emt 0:02:30]} Qd8 {[%emt 0:02:41]} 35. Rg3 {[%emt 0:01:30]} Kf8 {[%emt 0:00:42]} 36. Nxg7 {[%emt 0:03:04]} Rxg7 {[%emt 0:00:04]} 37. Qf5+ {[%emt 0:00:00]} Kg8 {[%emt 0:01:22]} 38. Qe6+ {[%emt 0:00:19]} Kh7 {[%emt 0:00:15]} 39. Rxg7+ {[%emt 0:01:33]} Kxg7 {[%emt 0:00:01]} 40. Nf5+ {[%emt 0:00:00]} Kf8 {[%emt 0:00:00]} 41. Qxh6+ {[%emt 0:01:04]} Ke8 {[%emt 0:01:55]} 42. Nxd6+ {[%emt 0:02:30]} Kd7 {[%emt 0:00:30]} 43. Qe6+ {[%emt 0:00:30]} Kc7 {[%emt 0:00:00]} 44. Ra7+ {[%emt 0:00:30]} 1-0

[Event "World Junior U20 Girls 2018"]
[Site "Gebze"]
[Date "2018.09.10"]
[Round "6"]
[White "Heydarova, Aytaj"]
[Black "Aydin, Gulenay"]
[Result "1/2-1/2"]
[ECO "E62"]
[WhiteElo "1948"]
[BlackElo "1882"]
[Annotator "NA"]
[PlyCount "106"]
[EventDate "2018.09.05"]
[EventType "swiss"]
[EventCountry "TUR"]
[SourceTitle "playchess.com"]
[Source "ChessBase"]
[SourceQuality "1"]
[TimeControl "40/5400+30:1800+30"]

1. Nf3 {[%emt 0:00:30]} Nf6 {[%emt 0:00:30]} 2. g3 {[%emt 0:00:30]} g6 {[%emt 0:00:00]} 3. Bg2 {[%emt 0:00:00]} Bg7 {[%emt 0:00:00]} 4. O-O {[%emt 0:00:00]} O-O {[%emt 0:00:00]} 5. c4 {[%emt 0:00:00]} d6 {[%emt 0:01:00]} 6. Nc3 {[%emt 0:00:00]} c6 {[%emt 0:01:30]} 7. d4 {[%emt 0:01:30]} Qa5 {[%emt 0:01:30]} 8. Qc2 {[%emt 0:20:30]} Qh5 {[%emt 0:06:30]} 9. e4 {[%emt 0:17:30] E62: King's Indian: Fianchetto: 6...c6 and Panno Variation (6...Nc6) without ...a6} e5 {[%emt 0:11:30]} (9... Bh3 10. Re1 Ng4 11. Bh1 Nd7 12. Qd2 e5 13. d5 {½-½ (13) Socko,B (2617)-Strikovic,A (2528) Lisbon 2014}) 10. dxe5 {[%emt 0:01:30]} dxe5 {[%emt 0:00:30]} 11. b3 $146 {[%emt 0:04:30]} ({Predecessor:} 11. b4 Re8 12. Rb1 Nbd7 13. c5 Nf8 14. Nd2 Bh3 15. Nc4 Ne6 16. f3 Nd7 17. Bxh3 Qxh3 {0-1 (46) Ristic,M (2169)-Drenchev,P (2480) Skopje 2015}) 11... Na6 {[%emt 0:09:30]} 12. Ba3 {[%emt 0:09:30]} Re8 {[%emt 0:02:30]} 13. Rad1 {[%emt 0:08:30]} Bg4 {[%emt 0:05:30]} 14. Rd3 {[%emt 0:04:30]} Nd7 {[%emt 0:08:30]} 15. b4 {[%emt 0:07:30]} Nf8 {[%emt 0:08:30]} 16. b5 {[%emt 0:05:07]} Nc7 {[%emt 0:01:30]} 17. Nh4 {[%emt 0:03:47]} Bf6 {[%emt 0:07:30]} 18. Nf3 {[%emt 0:08:46]} (18. h3 $16 Be6 19. bxc6 bxc6 20. Bc1) 18... Nfe6 {[%emt 0:06:30]} 19. bxc6 {[%emt 0:04:02]} bxc6 {[%emt 0:02:30]} 20. Re1 {[%emt 0:00:48]} Rad8 {[%emt 0:03:30]} 21. Rxd8 {[%emt 0:00:44]} Rxd8 {[%emt 0:00:30]} 22. Nd2 {[%emt 0:00:38]} Nd4 {[%emt 0:02:17]} 23. Qb2 {[%emt 0:00:25]} Bg5 {[%emt 0:01:31]} 24. Ncb1 {[%emt 0:00:12]} Nce6 {[%emt 0:02:14]} 25. Bb4 {[%emt 0:00:55]} Rb8 {[%emt 0:02:32]} 26. Qc3 {[%emt 0:00:14]} c5 {[%emt 0:03:43]} 27. Ba3 {[%emt 0:00:20]} Bxd2 {[%emt 0:06:25]} 28. Nxd2 {[%emt 0:00:35]} Ne2+ {[%emt 0:00:57]} 29. Rxe2 {[%emt 0:00:03]} Bxe2 {[%emt 0:00:00]} 30. Qe3 {[%emt 0:00:46]} Rc8 {[%emt 0:02:09]} 31. f4 {[%emt 0:00:47]} Bd1 {[%emt 0:01:39]} 32. Bb2 {[%emt 0:00:28]} Nd4 {[%emt 0:00:56]} 33. fxe5 {[%emt 0:00:38]} Qxe5 {[%emt 0:00:42]} 34. Kf2 {[%emt 0:00:36]} Rb8 {[%emt 0:01:42]} 35. Bc3 {[%emt 0:00:14]} Qd6 {[%emt 0:00:26]} 36. e5 {[%emt 0:00:15]} Qd7 {[%emt 0:00:25]} 37. Bd5 {[%emt 0:01:02]} Qf5+ {[%emt 0:00:47]} 38. Kg2 {[%emt 0:00:24]} Ne2 {[%emt 0:00:31]} 39. e6 {[%emt 0:00:32]} Nxc3 {[%emt 0:00:29]} 40. exf7+ {[%emt 0:00:00]} Kg7 {[%emt 0:00:00]} 41. Qxc3+ {[%emt 0:00:42]} Qf6 {[%emt 0:05:35]} 42. Qxf6+ {[%emt 0:05:30]} Kxf6 {[%emt 0:00:30]} 43. Ne4+ {[%emt 0:00:00]} Ke7 {[%emt 0:01:30]} 44. Nxc5 {[%emt 0:03:00]} Bg4 {[%emt 0:00:30]} 45. Kf2 {[%emt 0:02:30]} Rc8 {[%emt 0:03:30]} 46. Ne4 {[%emt 0:01:30] [#]} Be6 $17 {[%emt 0:04:36]} 47. Ke3 {[%emt 0:06:39]} Rd8 {[%emt 0:03:36]} 48. Bxe6 {[%emt 0:02:55]} Kxe6 {[%emt 0:00:30]} 49. Ng5+ {[%emt 0:00:00]} Ke7 {[%emt 0:00:24]} 50. Nxh7 {[%emt 0:00:15]} Kxf7 {[%emt 0:00:30]} 51. Ng5+ {[%emt 0:00:16]} Ke7 {[%emt 0:03:36]} 52. Ke4 {[%emt 0:00:49]} Rd2 {[%emt 0:07:43]} 53. h4 {[%emt 0:00:30]} Rd8 {[%emt 0:00:41]} 1/2-1/2

[Event "World Junior U20 Girls 2018"]
[Site "Gebze"]
[Date "2018.09.10"]
[Round "6"]
[White "Kocyigit, Buse Naz"]
[Black "Kamalidenova, Meruert"]
[Result "1/2-1/2"]
[ECO "E90"]
[WhiteElo "1944"]
[BlackElo "2011"]
[Annotator "NA"]
[PlyCount "106"]
[EventDate "2018.09.05"]
[EventType "swiss"]
[EventCountry "TUR"]
[SourceTitle "playchess.com"]
[Source "ChessBase"]
[SourceQuality "1"]
[TimeControl "40/5400+30:1800+30"]

1. d4 {[%emt 0:00:30]} Nf6 {[%emt 0:00:30]} 2. Nf3 {[%emt 0:00:30]} g6 {[%emt 0:00:30]} 3. c4 {[%emt 0:00:30]} Bg7 {[%emt 0:00:30]} 4. Nc3 {[%emt 0:00:00]} O-O {[%emt 0:00:00]} 5. e4 {[%emt 0:00:00]} d6 {[%emt 0:00:00]} 6. h3 {[%emt 0:00:00]} c5 {[%emt 0:02:30]} 7. Be3 {[%emt 0:01:00]} Qa5 {[%emt 0:04:30]} 8. Qd2 {[%emt 0:00:30]} Nc6 {[%emt 0:04:30] E90: King's Indian: Classical: Early deviations and 6 h3} 9. O-O-O {[%emt 0:07:30]} (9. d5 Nd4 10. Rd1 Nxf3+ 11. gxf3 Nh5 12. Bh6 f5 13. Bxg7 Kxg7 14. Rg1 fxe4 15. fxe4 Nf4 16. Rg3 {1-0 (38) Parligras,M (2616)-Parvanyan,A (2374) Germany 2017}) 9... a6 $146 {[%emt 0:03:30]} ({Predecessor:} 9... cxd4 10. Nxd4 Nxd4 11. Bxd4 Be6 12. Kb1 Rfc8 13. b3 Qc7 {0-1 (21) Wijesurija,G (2191)-Narayanan,K (2007) Chennai 2004}) 10. Bh6 {[%emt 0:16:30]} (10. d5 $5 {[%cal Rd5c6]} Nb8 11. Bh6 $14) 10... Rb8 {[%emt 0:09:30]} (10... Bxh6 $15 11. Qxh6 Nxd4) 11. Bxg7 {[%emt 0:00:30]} Kxg7 {[%emt 0:00:30]} 12. d5 {[%emt 0:11:30]} Na7 {[%emt 0:01:30]} 13. g4 {[%emt 0:11:30]} b5 {[%emt 0:04:30]} 14. g5 {[%emt 0:00:30]} Nd7 {[%emt 0:01:30]} 15. Qf4 {[%emt 0:46:30]} Nf6 {[%emt 0:04:30]} 16. Qd2 {[%emt 0:00:30]} Nd7 {[%emt 0:00:30]} 17. Qf4 {[%emt 0:00:30]} b4 {[%emt 0:00:30]} 18. Nb1 {[%emt 0:00:00]} Qxa2 {[%emt 0:04:30]} 19. h4 {[%emt 0:00:00]} Nb6 {[%emt 0:02:30]} 20. h5 {[%emt 0:00:00]} Nxc4 {[%emt 0:03:30]} 21. Bxc4 {[%emt 0:00:00]} Qxc4+ {[%emt 0:00:30]} 22. Kd2 {[%emt 0:00:00]} Bd7 $19 {[%emt 0:06:30]} 23. Rh4 {[%emt 0:00:00]} Bb5 {[%emt 0:20:30]} 24. hxg6 {[%emt 0:02:22]} fxg6 {[%emt 0:04:30]} 25. Qe3 {[%emt 0:00:59]} Ba4 {[%emt 0:01:17]} 26. Rc1 {[%emt 0:00:26]} Qb3 {[%emt 0:01:37]} 27. Qxb3 {[%emt 0:00:19]} Bxb3 {[%emt 0:00:03]} 28. Ke3 {[%emt 0:00:07]} Nc8 {[%emt 0:01:05]} 29. Rch1 {[%emt 0:00:30]} Rh8 {[%emt 0:00:00]} 30. Nbd2 {[%emt 0:00:23]} Ba4 {[%emt 0:00:07]} 31. b3 {[%emt 0:00:00]} Bb5 {[%emt 0:00:00]} 32. Rh6 {[%emt 0:00:02]} Nb6 {[%emt 0:01:25]} 33. Nh4 {[%emt 0:01:10]} Be8 {[%emt 0:02:59]} 34. f4 {[%emt 0:00:53]} Nd7 {[%emt 0:00:16]} 35. Nc4 {[%emt 0:00:41]} Bf7 {[%emt 0:00:52]} 36. f5 {[%emt 0:00:54]} Ne5 {[%emt 0:06:20]} 37. Nxe5 {[%emt 0:00:40]} dxe5 {[%emt 0:00:05]} 38. Kd3 {[%emt 0:00:31]} Rb6 {[%emt 0:02:58]} 39. Kc4 {[%emt 0:00:30]} Rc8 {[%emt 0:00:24]} 40. Nf3 {[%emt 0:00:20]} Bg8 {[%emt 0:01:40]} 41. Nxe5 {[%emt 0:30:20]} Rd6 {[%emt 0:30:56]} 42. fxg6 {[%emt 0:00:00]} hxg6 {[%emt 0:00:00]} 43. Ra1 {[%emt 0:00:00]} Rf8 {[%emt 0:00:00]} 44. Kxc5 {[%emt 0:00:00]} Rf4 {[%emt 0:00:00]} 45. Nc4 {[%emt 0:00:00]} Rd8 {[%emt 0:00:00]} 46. Rxa6 {[%emt 0:00:00]} Rxe4 {[%emt 0:00:00]} 47. Raxg6+ {[%emt 0:00:00]} Kf8 {[%emt 0:00:00]} 48. Kxb4 {[%emt 0:00:00]} Rb8+ {[%emt 0:00:00]} 49. Kc3 {[%emt 0:00:00]} Rxb3+ {[%emt 0:00:54]} 50. Kxb3 {[%emt 0:00:00]} Bxd5 {[%emt 0:00:04]} 51. Rb6 {[%emt 0:00:00]} Rxc4 {[%emt 0:01:51]} 52. Kb2 {[%emt 0:00:00]} Bg8 {[%emt 0:01:05]} 53. Rh3 {[%emt 0:02:15]} Rg4 {[%emt 0:01:27]} 1/2-1/2